{"text_format":"2","workbook":"xlsx","n_sheets":1,"sheets":["OSC CHURCH REPORT FORM"],"not_rendered":{"charts":0,"images":1,"macros":0,"external_links":0,"defined_names":0,"comments":0,"pivot_tables":0},"unopened":[],"bounds":{"document_bytes":16777216,"sheet_cells":100000,"run_cost":"one","rows_first":2000,"rows_last":500,"rows_between":2000,"halvings":0,"cell_chars":16384,"cell_head_chars":4096},"cells_cut":0,"cells_raw":0,"read":"whole","date_system":"1900"}

{"sheet":"OSC CHURCH REPORT FORM","index":0,"n_rows":151,"n_cols":11,"rows_kept":151,"cut":false,"hidden":false,"merged":[[44,2,44,8],[26,2,26,4],[43,2,43,8],[55,2,55,8],[52,4,52,8],[4,3,4,10],[0,0,0,10],[25,2,25,3],[146,1,146,3],[151,1,151,5],[143,2,143,4],[150,7,150,10],[152,1,152,10],[176,1,176,10],[146,8,146,10],[142,2,142,4],[100,1,100,4],[85,8,85,9],[85,5,85,7],[88,2,88,4],[87,2,87,4],[107,2,107,5],[108,2,108,4],[105,2,105,4],[129,1,129,10],[134,6,134,10],[109,2,109,4],[112,2,112,7],[113,2,113,3],[115,1,115,10],[122,2,122,8],[118,2,118,8],[119,2,119,8]]}
["Oklahoma State Council Fellowship of Churches - Church Report Form"]
[]
[]
[]
[]
[]
[]
[{"$nulls":6},"Church ID#:"]
[{"$nulls":5},"Church:","Pastor:"]
[{"$nulls":6},"Church:"]
[{"$nulls":6},"Address:"]
[{"$nulls":6},"City, ST Zip:"]
[]
[]
[]
[]
[1.0,null,"OSC Report - Suffragan Bishop Nelson A. McMillan - Chairman"]
[null,null,"Church Secretary:  "]
[null,"1","Aenon Bible College Fund ",{"$nulls":6},0.0]
[null,"2","OSC Restoration $62.00 per Council",{"$nulls":6},0.0]
[null,"3","Report Money $25.00 per Council",{"$nulls":6},0.0]
[null,4.0,"Delegate Fund"]
[null,null,"Under 30 Members $10.00 Per Year - 30 Members and over $25.00 Per Year",{"$nulls":6},0.0]
[{"$nulls":8},"Total",{"$f":"SUM(J19:J23)","v":0},{"$f":"SUM(J24)","v":0}]
[null,5.0,"Number of Members at Last Council",null,null,null,0.0]
[null,6.0,"Number Baptized",null,null,null,0.0]
[null,7.0,"Number Filled With The Holy Ghost",null,null,null,0.0]
[null,8.0,"Number Reclaimed",null,null,null,0.0]
[null,9.0,"Present Membership",null,null,null,0.0]
[null,10.0,"New Members (Already Saved)",null,null,null,0.0]
[null,11.0,"Members Moved (Relocated)",null,null,null,0.0]
[2.0,null,"Church Extension & Evangelism - Elder John Thomas, Sr. - President"]
[null,null,"Local President:"]
[null,"1","Report Money $10.00",{"$nulls":6},0.0]
[null,"2","Delegate's Fee",{"$nulls":6},0.0]
[null,3.0,"State President's Love Offering",{"$nulls":6},0.0]
[{"$nulls":8},"Total",{"$f":"SUM(J34:J36)","v":0},{"$f":"SUM(J37)","v":0}]
[3.0,null,"Men's Ministry - Elder Anthony Bonner, Jr. - President"]
[null,null,"Local President:"]
[null,"1","Delegate's Fee",{"$nulls":6},0.0]
[null,"2","Report Money $10.00",{"$nulls":6},0.0]
[null,"3","State President's Love Offering",{"$nulls":6},0.0]
[null,"4","National Fee Money - $5.00 Small Churches & $10.00 Large Churches",{"$nulls":6},0.0]
[null,"5","IMMA Dues - $10.00 Per Brother Per Church",{"$nulls":6},0.0]
[null,"6","IMMA President's Love Offering",{"$nulls":6},0.0]
[{"$nulls":8},"Total",{"$f":"SUM(J40:J45)","v":0},{"$f":"SUM(J46)","v":0}]
[4.0,null,"Christian Education - Elder Daryl Ladd - Superintendent"]
[null,null,"Local Superintendent:"]
[null,"1","Membership Fees ($.25 Per Person)",{"$nulls":6},0.0]
[null,"2","Report Money $10.00",{"$nulls":6},0.0]
[null,"3","Superintendent's Love Offering",{"$nulls":6},0.0]
[null,"4","National Fees     Membership:     1 to 49 - $25.00      50 to 99 - $45.00     100 to 250 - $55.00   "]
[null,null,"                        ",null,"             251 to 500 - $75.00       501 & Up - $110.00",{"$nulls":4},0.0]
[null,5.0,"Delegate's Fee",{"$nulls":6},0.0]
[null,6.0,"Regional Fee ($25.00 Per Church) ½ can be paid at each Council",{"$nulls":6},0.0]
[null,7.0,"Council Regional Assessment Fee ($5.00 Per Church) ½ can be paid at each Council",{"$nulls":6},0.0]
[null,8.0,"National Ways & Means",{"$nulls":6},0.0]
[{"$nulls":8},"Total",{"$f":"SUM(J49:J57)","v":0},{"$f":"SUM(J58)","v":0}]
[null,9.0,"Number of Pupils Enrolled",null,null,null,0.0]
[null,10.0,"Number of Teachers",null,null,null,0.0]
[null,11.0,"Number of Classes",null,null,null,0.0]
[]
[5.0,null,"Missionary - Evangelist Pamela Meadows - President"]
[null,null,"Local President:"]
[null,"1","$.50 Cents Membership Fees (Varied)",{"$nulls":6},0.0]
[null,"2","Delegate Fund Contribution",{"$nulls":6},0.0]
[null,"3","Evangelistic Fee of $1.00 Per Person",{"$nulls":6},0.0]
[null,"4","Evangelistic Fund (Physical Plants, Open Offerings, Building Fund, etc.)",{"$nulls":6},0.0]
[null,"5","National Ways & Means $5.20 Per Person Per Year",{"$nulls":6},0.0]
[null,"6","National Women's Auxiliary $10.00 Per Year",null,null,null,"(1/2 can be paid per Council)",null,null,0.0]
[null,"7","Report Money $10.00",{"$nulls":6},0.0]
[null,"8","State President's Love Offering",{"$nulls":6},0.0]
[null,"9","National President's Love Offering",{"$nulls":6},0.0]
[{"$nulls":8},"Total",{"$f":"SUM(J65:J73)","v":0},{"$f":"SUM(J74)","v":0}]
[6.0,null,"Young People - Minister Jazmin McConnell - President"]
[null,null,"Local President:"]
[null,"1","Report Money $10.00",{"$nulls":6},0.0]
[null,"2","Annual National Fee ($20.40 Money Per Church)",{"$nulls":6},0.0]
[null,"3","Delegate Fund (Free Will Offering)",{"$nulls":6},0.0]
[null,"4","State President's Love Offering",{"$nulls":6},0.0]
[null,"5","Number of PAW Kids in Your Church (4 Thru 12 Yrs Old)",{"$nulls":4},0.0]
[null,"6","Number of Youth in Your Church (13 Yrs & Older)",{"$nulls":4},0.0]
[{"$nulls":8},"Total",{"$f":"SUM(J77:J80)","v":0},{"$f":"SUM(J83)","v":0}]
[7.0,null,"Ministers' Deacons' Trustees' Wives & Evangelists - First Lady Zondra Magness - President"]
[null,null,"Local President:"]
[{"$nulls":5},"STATE",null,null,"NATIONAL"]
[{"$nulls":5},"Ways & Means","President's","Delegate's","National Dues","President's"]
[null,null,"Members",null,null,".10/Age Yr","Love Offering","Fee","$25.00/Yr","Love Offering"]
[null,1.0,null,null,null,0.0,0.0,0.0,0.0,0.0]
[null,2.0]
[null,3.0]
[null,4.0]
[null,5.0]
[null,6.0,{"$nulls":6}," "]
[null,7.0]
[null,8.0]
[null,9.0]
[null,10.0]
[null,11.0]
[null,12.0]
[null,"Please use additional sheet if necessary"]
[{"$nulls":4},"Column Totals",{"$f":"SUM(F89:F101)","v":0},0,0,0,0]
[{"$nulls":8},"Total",{"$f":"SUM(F102:J102)","v":0},{"$f":"SUM(J103)","v":0}]
[8.0,null,"Usher Board - Sister Joyce Phinisee  - President"]
[null,null,"Local President:"]
[null,"1","State Usher Dues $30.00/Usher/Year",{"$nulls":6},0.0]
[null,"2","Delegate's Fee",{"$nulls":6},0.0]
[null,"3","State President's Love Offering",{"$nulls":6},0.0]
[null,"4","National Usher Dues $10.00/Usher/Year",{"$nulls":6},0.0]
[null,"5","National President's Love Offering",{"$nulls":6},0.0]
[null,6.0,"National Ways & Means ($25.00/Council)",{"$nulls":6},0.0]
[null,7.0,"National Church Offerings ($10.00/Pastor/Church)",{"$nulls":6},0.0]
[null,8.0,"National Council Love Offering (Based On Flat Rate Pre-Registration)",{"$nulls":6},0.0]
[null,9.0,"Number of Adult Ushers",null,0.0]
[{"$nulls":8},"Total",{"$f":"SUM(J106:J114)","v":0},{"$f":"SUM(J115)","v":0}]
[]
[9.0,null,"Health Professional - Sister Margaret Mary Kongi  - President"]
[null,null,"Local President:"]
[null,"1","State Health Professional Dues ($20.00 Per Adult Per Year)  ½ paid at each Council",{"$nulls":6},0.0]
[null,"2","State Health Professional Dues ($10.00 Per Junior Per Year)  ½ paid at each Council",{"$nulls":6},0.0]
[null,3.0,"State President's Love Offering",{"$nulls":6},0.0]
[null,4.0,"Delegate's Fee",{"$nulls":6},0.0]
[null,5.0,"National Health Professional Dues $15.00 Annually (Senior & Junior HP)  ½ paid at each Council",{"$nulls":6},0.0]
[null,6.0,"National President's Love Offering",{"$nulls":6},0.0]
[null,7.0,"National Ways & Means",{"$nulls":6},0.0]
[null,8.0,"Number of Adult Health Professionals",null,null,null,0.0]
[null,9.0,"Number of Junior Health Professionals (15 & Under)",null,null,null,0.0]
[{"$nulls":8},"Total",{"$f":"SUM(J119:J127)","v":0},{"$f":"SUM(J128)","v":0}]
[]
[]
[]
[]
[]
[]
[{"$nulls":6},"OFFICE USE ONLY"]
[null,"1","OSC Report",null,null,{"$f":"SUM(J24)","v":0}]
[null,"2","Church Extension",null,null,{"$f":"SUM(J37)","v":0},null,"Type of Payment",null,"Reference#"]
[null,"3","Men's Ministry",null,null,{"$f":"SUM(J46)","v":0}]
[null,"4","Christian Education",null,null,{"$f":"SUM(J58)","v":0},null,null,"Cash"]
[null,"5","Missionary",null,null,{"$f":"SUM(J74)","v":0},null,null,"Check"]
[null,"6","Young People",null,null,{"$f":"SUM(J83)","v":0},null,null,"Money Order"]
[null,"7","Ministers' & Deacons' Wives",null,null,{"$f":"SUM(J103)","v":0}]
[null,8.0,"Usher Board",null,null,{"$f":"SUM(J115)","v":0}]
[null,9.0,"Health Professional",null,null,{"$f":"SUM(J128)","v":0},"  Report verified by:_____________________________  Date"]
[]
[]
[null,"Total Church Reports ",null,null,{"$f":"SUM(F136:F144)","v":0},null,null,"Report prepared by:"]
[]
[{"$nulls":6},"This original form must be turned in to the OSC Secretary"]
[{"$nulls":6},"Each church is responsible for making nine (9) copies for the above areas"]
[null,"Revised 09/16/2019"]